Workbook

Sheet ------ (hidden)

Sheet VXXXXX (hidden)

Sheet 징수실적
H1: 2017년 12월분 지방세 징수실적 보고서 (2017 회계)
S4: (단위 : 천원)
A5: 구 분 | E5: 목 표액 (예산액) | H5: 부 과 액 | J5: 징 수 액 | L5: 불납결손액 | N5: 미 수 납 액 | O5: 징 수 비 율 | R5: 과오납 환부액
E6: 당 초 | F6: 추경목표액 | G6: 최종 | H6: 본월분 | I6: 누 계 | J6: 본월분 | K6: 누 계 | L6: 본월분 | M6: 누 계 | O6: 대목표 (당초) | P6: 대목표 (최종) | Q6: 대부과 | R6: 본월분 | S6: 누 계
A7: 총 괄 | B7: 합 계 | E7: =SUM(E8:E9) -> 308,152,000 | F7: =SUM(F8:F9) -> 67,042,000 | G7: =SUM(E7:F7) -> 375,194,000 | H7: =SUM(H8:H9) -> 28,602,793 | I7: 445,656,806 | J7: 26,707,722 | K7: =SUM(K8:K9) -> 433,820,570 | L7: 518,275 | M7: 1,844,990 | N7: 9,991,246 | O7: =+K7/E7*100 -> 140.8 | P7: =+K7/G7*100 -> 115.6 | Q7: =+K7/I7*100 -> 97.3 | R7: =SUM(R8:R9) -> 163,219 | S7: =SUM(S8:S9) -> 6,400,710
B8: 도 세 | E8: =E11+E46+E47 -> 90,500,000 | F8: =F11+F46+F47 -> 0 | G8: =SUM(E8:F8) -> 90,500,000 | H8: 13,935,318 | I8: 143,933,778 | J8: 13,499,902 | K8: 141,048,816 | L8: 228,751 | M8: 708,099 | N8: 2,176,863 | O8: 155.9 | P8: 155.9 | Q8: 98.0 | R8: =R11+R46+R47 -> 42,981 | S8: =S11+S46+S47 -> 2,764,558
B9: 시 군 세 | E9: =E31+E48 -> 217,652,000 | F9: =F31+F48 -> 67,042,000 | G9: 284,694,000 | H9: =H31+H48 -> 14,667,475 | I9: 301,723,028 | J9: 13,207,820 | K9: 292,771,754 | L9: 289,524 | M9: 1,136,891 | N9: 7,814,383 | O9: 134.5 | P9: 102.8 | Q9: 97.0 | R9: =R31+R48 -> 120,238 | S9: =S31+S48 -> 3,636,152
A10: 현 년 도 | B10: 계 | E10: =SUM(E11,E31) -> 306,752,000 | F10: =SUM(F11,F31) -> 67,042,000 | G10: 373,794,000 | H10: 28,603,664 | I10: 438,163,779 | J10: 26,658,209 | K10: 432,677,361 | L10: 133,790 | M10: 237,679 | N10: 5,248,739 | O10: 141.1 | P10: 115.8 | Q10: 98.7 | R10: =SUM(R11,R31) -> 131,196 | S10: =SUM(S11,S31) -> 3,427,261
B11: 도 세 | C11: 소 계 | E11: =SUM(E12,E13,E16,E19:E23,E24) -> 89,800,000 | F11: =SUM(F12,F13,F16,F19:F23,F24) -> 0 | G11: 89,800,000 | H11: 13,949,071 | I11: 141,772,738 | J11: 13,503,451 | K11: 140,533,662 | L11: 101,415 | M11: 108,445 | N11: 1,130,631 | O11: 156.5 | P11: 156.5 | Q11: 99.1 | R11: =SUM(R12,R13,R16,R19:R23,R24) -> 23,152 | S11: =SUM(S12,S13,S16,S19:S23,S24) -> 2,318,072
C12: 취 득 세 | E12: 50,000,000 | G12: 50,000,000 | H12: 9,343,069 | I12: 93,945,376 | J12: 9,347,424 | K12: 93,630,540 | L12: 92,318 | M12: 92,318 | N12: =I12-K12-M12 -> 222,518 | O12: 187.3 | P12: 187.3 | Q12: 99.7 | R12: 15,887 | S12: 2,117,161
C13: 등 록 면허세 | D13: 소 계 | E13: =SUM(E14:E15) -> 6,800,000 | F13: =SUM(F14:F15) -> 0 | G13: 6,800,000 | H13: 495,315 | I13: 6,917,615 | J13: 495,958 | K13: 6,884,801 | L13: 131 | M13: 333 | N13: 32,481 | O13: 101.2 | P13: 101.2 | R13: =SUM(R14:R15) -> 3,294 | S13: =SUM(S14:S15) -> 38,323
D14: 등록분 | E14: 5,806,154 | G14: 5,806,154 | H14: 469,694 | I14: 5,807,437 | J14: 469,510 | K14: 5,790,546 | L14: 0 | M14: 0 | N14: =I14-K14-M14 -> 16,891 | O14: 99.7 | P14: 99.7 | Q14: 99.7 | R14: 3,279 | S14: 37,550
D15: 면허분 | E15: 993,846 | G15: 993,846 | H15: 25,621 | I15: 1,110,178 | J15: 26,448 | K15: 1,094,255 | L15: 131 | M15: 333 | N15: =I15-K15-M15 -> 15,590 | O15: 110.1 | P15: 110.1 | Q15: 98.6 | R15: 15 | S15: 773
C16: 지 역 자 원 시설세 | D16: 소 계 | E16: =SUM(E17:E18) -> 11,000,000 | F16: =SUM(F17:F18) -> 0 | G16: 11,000,000 | H16: 234,906 | I16: 12,717,144 | J16: 244,840 | K16: 12,611,613 | L16: 316 | M16: 5,281 | N16: 100,250 | O16: 114.7 | P16: 114.7 | Q16: 99.2 | R16: =SUM(R17:R18) -> 0 | S16: =SUM(S17:S18) -> 775
D17: 특정자원 | E17: 2,433,150 | G17: 2,433,150 | H17: 234,062 | I17: 3,338,066 | J17: 234,306 | K17: 3,337,507 | L17: 0 | M17: 0 | N17: =I17-K17-M17 -> 559 | O17: 137.2 | P17: 137.2 | Q17: 100.0 | R17: 0 | S17: 6
D18: 특정부동산 | E18: 8,566,850 | G18: 8,566,850 | H18: 844 | I18: 9,379,078 | J18: 10,534 | K18: 9,274,106 | L18: 316 | M18: 5,281 | N18: 99,691 | O18: 108.3 | P18: 108.3 | Q18: 98.9 | R18: 0 | S18: 769
C19: 지방소비세 | G19: 0 | N19: 0
C20: 등 록 세 | G20: 0 | H20: 3,964 | I20: 75,909 | J20: 3,964 | K20: 75,898 | L20: 0 | M20: 0 | N20: 11 | Q20: 100.0 | R20: 385 | S20: 1,491
C21: 면 허 세 | G21: 0 | N21: 0
C22: 공동시설세 | G22: 0 | N22: 0
C23: 지역개발세 | G23: 0 | N23: 0
C24: 지 방 교 육 세 | D24: 소 계 | E24: =SUM(E25:E30) -> 22,000,000 | F24: =SUM(F25:F30) -> 0 | G24: 22,000,000 | H24: =SUM(H25:H30) -> 3,871,817 | I24: 28,116,694 | J24: 3,411,265 | K24: 27,330,810 | L24: 8,650 | M24: 10,513 | N24: 775,371 | O24: 124.2 | P24: 124.2 | Q24: 97.2 | R24: =SUM(R25:R30) -> 3,586 | S24: =SUM(S25:S30) -> 160,322
D25: 취득세분 | E25: 2,509,000 | G25: 2,509,000 | H25: 563,949 | I25: 5,882,837 | J25: 563,452 | K25: 5,870,390 | L25: 7,086 | M25: 7,086 | N25: =I25-K25-M25 -> 5,361 | O25: 234.0 | P25: 234.0 | Q25: 99.8 | R25: 841 | S25: 79,678
D26: 등록면허세분 | E26: 1,828,000 | G26: 1,828,000 | H26: 76,999 | I26: 971,603 | J26: 76,966 | K26: 968,242 | N26: 3,361 | O26: 53.0 | P26: 53.0 | Q26: 99.7 | R26: 726 | S26: 7,711
D27: 주민세분 | E27: 86,000 | G27: 86,000 | H27: -19 | I27: 185,607 | J27: 2,790 | K27: 169,281 | L27: 158 | M27: 232 | N27: 16,094 | O27: 196.8 | P27: 196.8 | Q27: 91.2 | R27: 2 | S27: 35
D28: 재산세분 | E28: 3,065,000 | G28: 3,065,000 | H28: 390 | I28: 5,097,725 | J28: 16,775 | K28: 5,007,044 | L28: 1,024 | M28: 2,209 | N28: 88,472 | O28: 163.4 | P28: 163.4 | Q28: 98.2 | R28: 0 | S28: 10,212
D29: 자동차세분 | E29: 5,926,000 | G29: 5,926,000 | H29: 2,489,282 | I29: 6,915,569 | J29: 2,010,065 | K29: 6,252,502 | L29: 382 | M29: 986 | N29: 662,081 | O29: 105.5 | P29: 105.5 | Q29: 90.4 | R29: 2,017 | S29: 62,686
D30: 담배소비세분 | E30: 8,586,000 | G30: 8,586,000 | H30: 741,216 | I30: 9,063,353 | J30: 741,217 | K30: 9,063,351 | N30: 2 | O30: 105.6 | P30: 105.6 | Q30: 100.0 | R30: 0 | S30: 0
B31: 시 군 세 | C31: 소 계 | E31: =SUM(E32,E33,E34,E37:E44) -> 216,952,000 | F31: =SUM(F32,F33,F34,F37:F44) -> 67,042,000 | G31: 283,994,000 | H31: =SUM(H32,H33,H34,H37:H44) -> 14,654,593 | I31: =SUM(I32,I33,I34,I37:I44) -> 296,391,041 | J31: 13,154,758 | K31: 292,143,699 | L31: 32,375 | M31: 129,234 | N31: 4,118,108 | O31: 134.7 | P31: 102.9 | Q31: 98.6 | R31: =SUM(R32,R33,R34,R37:R44) -> 108,044 | S31: =SUM(S32,S33,S34,S37:S44) -> 1,109,189
C32: 주 민 세 | E32: 12,252,000 | F32: 1,939,000 | G32: 14,191,000 | H32: 740,382 | I32: 14,240,683 | J32: 774,493 | K32: 14,053,902 | L32: 3,119 | M32: 3,861 | N32: =I32-K32-M32 -> 182,920 | O32: 114.7 | P32: 99.0 | Q32: 98.7 | R32: 5,171 | S32: 29,640
C33: 재 산 세 | E33: 35,000,000 | F33: 3,010,000 | G33: 38,010,000 | H33: 4,187 | I33: 40,387,533 | J33: 131,522 | K33: 39,735,278 | L33: 9,250 | M33: 15,386 | N33: =I33-K33-M33 -> 636,869 | O33: 113.5 | P33: 104.5 | Q33: 98.4 | R33: 3 | S33: 52,118
C34: 자동 차세 | D34: 소 계 | E34: =SUM(E35:E36) -> 55,700,000 | F34: =SUM(F35:F36) -> 1,004,000 | G34: 56,704,000 | H34: =SUM(H35:H36) -> 9,459,029 | I34: 60,433,721 | J34: 7,850,536 | K34: =SUM(K35:K36) -> 58,154,057 | L34: 1,469 | M34: 3,741 | N34: 2,275,923 | O34: 104.4 | P34: 102.6 | Q34: 96.2 | R34: =SUM(R35:R36) -> 8,377 | S34: =SUM(S35:S36) -> 236,925
D35: 자동차분 | E35: 20,216,000 | F35: 1,004,000 | G35: 21,220,000 | H35: 8,387,589 | I35: 24,271,222 | J35: 6,779,096 | K35: 21,991,558 | L35: 1,469 | M35: 3,741 | N35: =I35-K35-M35 -> 2,275,923 | O35: 108.8 | P35: 103.6 | Q35: 90.6 | R35: 8,377 | S35: 236,925
D36: 주 행 분 | E36: 35,484,000 | F36: 0 | G36: 35,484,000 | H36: 1,071,440 | I36: 36,162,499 | J36: 1,071,440 | K36: 36,162,499 | L36: 0 | M36: 0 | N36: 0 | O36: 101.9 | P36: 101.9 | Q36: 100.0
C37: 담배소비세 | E37: 19,000,000 | F37: 1,000,000 | G37: 20,000,000 | H37: 1,684,968 | I37: 21,002,099 | J37: 1,684,967 | K37: 21,002,099 | L37: 0 | M37: 0 | N37: 0 | O37: 110.5 | P37: 105.0 | Q37: 100.0
C38: 지방소득세 | E38: 95,000,000 | F38: 60,089,000 | G38: 155,089,000 | H38: 2,766,027 | I38: 160,327,005 | J38: 2,713,240 | K38: 159,198,363 | L38: 18,537 | M38: 106,246 | N38: 1,022,396 | O38: 167.6 | P38: 102.6 | Q38: 99.3 | R38: 94,493 | S38: 790,506
C39: 주 행 세 | G39: 0 | N39: 0
C40: 농업소득세 | G40: 0 | N40: 0
C41: 도 축 세 | G41: 0 | N41: 0
C42: 종합토지세 | G42: 0 | N42: 0
C43: 도시계획세 | G43: 0 | N43: 0
C44: 사 업 소세 | G44: 0 | N44: 0
A45: 과 년 도 | B45: 계 | E45: =SUM(E46:E48) -> 1,400,000 | F45: =SUM(F46:F48) -> 0 | G45: 1,400,000 | H45: =SUM(H46:H48) -> -871 | I45: 7,493,027 | J45: 49,513 | K45: 1,143,209 | L45: 384,485 | M45: 1,607,311 | N45: 4,742,507 | O45: 81.7 | P45: 81.7 | Q45: 15.3 | R45: =SUM(R46:R48) -> 32,023 | S45: =SUM(S46:S48) -> 2,973,449
B46: 도 세 | E46: 317,332 | G46: 317,332 | H46: -13,822 | I46: 925,505 | J46: -13,372 | K46: -144,857 | L46: 98,909 | M46: 496,190 | N46: =I46-K46-M46 -> 574,172 | O46: -45.6 | P46: -45.6 | Q46: -15.7 | R46: 19,271 | S46: 408,938
B47: 지방교육세 | E47: 382,668 | G47: 382,668 | H47: 69 | I47: 1,235,535 | J47: 9,823 | K47: 660,011 | L47: 28,427 | M47: 103,464 | N47: =I47-K47-M47 -> 472,060 | O47: 172.5 | P47: 172.5 | Q47: 53.4 | R47: 558 | S47: 37,548
B48: 시 군 세 | E48: 700,000 | G48: 700,000 | H48: 12,882 | I48: 5,331,987 | J48: 53,062 | K48: 628,055 | L48: 257,149 | M48: 1,007,657 | N48: =I48-K48-M48 -> 3,696,275 | O48: 89.7 | P48: 89.7 | Q48: 11.8 | R48: 12,194 | S48: 2,526,963
